[Event "Titled Tuesday Blitz April 19 Late 2022"]
[White "Antonova, Nadezhda"]
[Black "Mangialardo, Tiago Carvalho"]
[WhiteFideId "14700182"]
[BlackFideId "2130718"]
[WhiteElo "1789"]
[BlackElo "2048"]
[Result "0-1"]
[Round "05"]
[TimeControl "180+1"]
[Date "2022.04.19"]
[WhiteClock "0:00:02"]
[BlackClock "0:00:03"]

1. Nf3 {[%clk 0:02:56]}  Nf6 {[%clk 0:02:59]} 2. b3 {[%clk 0:02:56]}  e6 {[%clk 0:03:00]} 3. Bb2 {[%clk 0:02:57]}  d5 {[%clk 0:03:00]} 4. g3 {[%clk 0:02:57]}  Be7 {[%clk 0:03:00]} 5. Bg2 {[%clk 0:02:57]}  O-O {[%clk 0:03:01]} 6. O-O {[%clk 0:02:57]}  Nbd7 {[%clk 0:03:01]} 7. c4 {[%clk 0:02:54]}  Rb8 {[%clk 0:02:52]} 8. Nc3 {[%clk 0:02:49]}  c6 {[%clk 0:02:18]} 9. e3 {[%clk 0:02:31]}  Re8 {[%clk 0:02:05]} 10. d4 {[%clk 0:02:29]}  Bf8 {[%clk 0:01:25]} 11. Rc1 {[%clk 0:02:14]}  dxc4 {[%clk 0:01:09]} 12. bxc4 {[%clk 0:02:13]}  e5 {[%clk 0:01:10]} 13. dxe5 {[%clk 0:02:06]}  Nxe5 {[%clk 0:01:11]} 14. Nxe5 {[%clk 0:01:54]}  Qxd1 {[%clk 0:01:07]} 15. Rfxd1 {[%clk 0:01:55]}  Rxe5 {[%clk 0:01:06]} 16. Ne4 {[%clk 0:01:47]}  Rxe4 {[%clk 0:00:49]} 17. Bxf6 {[%clk 0:01:41]}  Re8 {[%clk 0:00:49]} 18. Bd8 {[%clk 0:01:35]}  Be6 {[%clk 0:00:47]} 19. Bc7 {[%clk 0:01:32]}  Rbc8 {[%clk 0:00:45]} 20. Ba5 {[%clk 0:01:26]}  b6 {[%clk 0:00:43]} 21. Be1 {[%clk 0:01:23]}  Ba3 {[%clk 0:00:41]} 22. Rc2 {[%clk 0:01:15]}  Bf5 {[%clk 0:00:36]} 23. Rcd2 {[%clk 0:01:04]}  Bb4 {[%clk 0:00:33]} 24. Rd4 {[%clk 0:01:01]}  Bc5 {[%clk 0:00:29]} 25. R4d2 {[%clk 0:00:58]}  Be6 {[%clk 0:00:26]} 26. Rc2 {[%clk 0:00:47]}  Kf8 {[%clk 0:00:10]} 27. Bc3 {[%clk 0:00:38]}  f6 {[%clk 0:00:09]} 28. Bd4 {[%clk 0:00:37]}  Be7 {[%clk 0:00:04]} 29. c5 {[%clk 0:00:35]}  b5 {[%clk 0:00:04]} 30. Rcd2 {[%clk 0:00:21]}  a5 {[%clk 0:00:04]} 31. h3 {[%clk 0:00:19]}  b4 {[%clk 0:00:02]} 32. f4 {[%clk 0:00:18]}  Kf7 {[%clk 0:00:03]} 33. Kf2 {[%clk 0:00:18]}  Red8 {[%clk 0:00:03]} 34. g4 {[%clk 0:00:16]}  Bd5 {[%clk 0:00:02]} 35. e4 {[%clk 0:00:15]}  Bc4 {[%clk 0:00:02]} 36. Bf3 {[%clk 0:00:12]}  a4 {[%clk 0:00:02]} 37. Ke3 {[%clk 0:00:11]}  b3 {[%clk 0:00:02]} 38. axb3 {[%clk 0:00:11]}  Bxb3 {[%clk 0:00:03]} 39. Rb1 {[%clk 0:00:08]}  Bc4 {[%clk 0:00:03]} 40. Rc2 {[%clk 0:00:08]}  Bb5 {[%clk 0:00:03]} 41. Rcb2 {[%clk 0:00:07]}  Ra8 {[%clk 0:00:03]} 42. e5 {[%clk 0:00:07]}  fxe5 {[%clk 0:00:03]} 43. fxe5 {[%clk 0:00:07]}  Ke6 {[%clk 0:00:03]} 44. Be4 {[%clk 0:00:07]}  g6 {[%clk 0:00:02]} 45. Kd2 {[%clk 0:00:04]}  Bg5+ {[%clk 0:00:03]} 46. Kc3 {[%clk 0:00:04]}  Be7 {[%clk 0:00:02]} 47. Rxb5 {[%clk 0:00:03]}  cxb5 {[%clk 0:00:02]} 48. Bxa8 {[%clk 0:00:03]}  Rxa8 {[%clk 0:00:02]} 49. Rxb5 {[%clk 0:00:02]}  Kd5 {[%clk 0:00:03]} 0-1


[Site "https://www.chess.com"]

[Event "Titled Tuesday Blitz April 19 Late 2022"]
[White "Ardila, Oscar Humberto"]
[Black "Sanchez Alvares, Kelvin Antonio"]
[WhiteFideId "4404742"]
[BlackFideId "3906680"]
[WhiteElo "1983"]
[BlackElo "2193"]
[Result "1-0"]
[Round "05"]
[TimeControl "180+1"]
[Date "2022.04.19"]
[WhiteClock "0:00:42"]
[BlackClock "0:00:25"]

1. d4 {[%clk 0:02:58]}  d5 {[%clk 0:02:58]} 2. c4 {[%clk 0:02:58]}  c6 {[%clk 0:02:58]} 3. cxd5 {[%clk 0:02:58]}  cxd5 {[%clk 0:02:51]} 4. Nc3 {[%clk 0:02:58]}  Nc6 {[%clk 0:02:49]} 5. Nf3 {[%clk 0:02:59]}  Nf6 {[%clk 0:02:44]} 6. Bf4 {[%clk 0:02:59]}  Bf5 {[%clk 0:02:43]} 7. e3 {[%clk 0:02:59]}  e6 {[%clk 0:02:43]} 8. Be2 {[%clk 0:02:58]}  Bb4 {[%clk 0:02:42]} 9. O-O {[%clk 0:02:58]}  O-O {[%clk 0:02:41]} 10. Rc1 {[%clk 0:02:57]}  Qa5 {[%clk 0:02:36]} 11. a3 {[%clk 0:02:43]}  Bxc3 {[%clk 0:02:34]} 12. Rxc3 {[%clk 0:02:43]}  Ne4 {[%clk 0:02:34]} 13. Rc1 {[%clk 0:02:43]}  Rfc8 {[%clk 0:02:32]} 14. Bd3 {[%clk 0:02:28]}  f6 {[%clk 0:02:23]} 15. Bxe4 {[%clk 0:02:20]}  Bxe4 {[%clk 0:02:18]} 16. Nd2 {[%clk 0:02:20]}  Bg6 {[%clk 0:02:17]} 17. Qe2 {[%clk 0:02:09]}  Qb6 {[%clk 0:02:08]} 18. b4 {[%clk 0:01:50]}  a5 {[%clk 0:02:06]} 19. b5 {[%clk 0:01:50]}  Ne7 {[%clk 0:02:04]} 20. a4 {[%clk 0:01:46]}  Bc2 {[%clk 0:01:59]} 21. Ra1 {[%clk 0:01:43]}  Rc3 {[%clk 0:01:50]} 22. Nb1 {[%clk 0:01:39]}  Rcc8 {[%clk 0:01:44]} 23. Rc1 {[%clk 0:01:38]}  Bd3 {[%clk 0:01:39]} 24. Qd2 {[%clk 0:01:33]}  Bc4 {[%clk 0:01:38]} 25. Na3 {[%clk 0:01:18]}  Nf5 {[%clk 0:01:30]} 26. Nxc4 {[%clk 0:01:14]}  dxc4 {[%clk 0:01:29]} 27. Qa2 {[%clk 0:01:11]}  g5 {[%clk 0:01:19]} 28. Bg3 {[%clk 0:01:08]}  h5 {[%clk 0:01:16]} 29. h3 {[%clk 0:01:05]}  Nxg3 {[%clk 0:01:08]} 30. fxg3 {[%clk 0:01:04]}  Qc7 {[%clk 0:01:08]} 31. Qf2 {[%clk 0:01:01]}  Kg7 {[%clk 0:01:04]} 32. Rf1 {[%clk 0:01:00]}  Qe7 {[%clk 0:01:02]} 33. Qe2 {[%clk 0:01:00]}  Qd6 {[%clk 0:00:49]} 34. Qf3 {[%clk 0:01:00]}  Rc7 {[%clk 0:00:43]} 35. Qxf6+ {[%clk 0:00:59]}  Kh7 {[%clk 0:00:44]} 36. Qxg5 {[%clk 0:00:57]}  Rg7 {[%clk 0:00:43]} 37. Qxh5+ {[%clk 0:00:57]}  Kg8 {[%clk 0:00:44]} 38. Rf4 {[%clk 0:00:52]}  Rxg3 {[%clk 0:00:29]} 39. Raf1 {[%clk 0:00:51]}  Qe7 {[%clk 0:00:25]} 40. Rf7 {[%clk 0:00:42]} 1-0


[Site "https://www.chess.com"]

[Event "Titled Tuesday Blitz April 19 Late 2022"]
[White "Aroesti, Roee"]
[Black "Bryakin, Mikhail"]
[WhiteFideId "2817144"]
[BlackFideId "4165314"]
[WhiteElo "2068"]
[BlackElo "2417"]
[Result "0-1"]
[Round "05"]
[TimeControl "180+1"]
[Date "2022.04.19"]
[WhiteClock "0:00:02"]
[BlackClock "0:00:59"]

1. e4 {[%clk 0:03:00]}  e6 {[%clk 0:02:58]} 2. d4 {[%clk 0:03:00]}  d5 {[%clk 0:02:59]} 3. e5 {[%clk 0:02:59]}  c5 {[%clk 0:02:59]} 4. c3 {[%clk 0:02:59]}  Qb6 {[%clk 0:02:57]} 5. Nf3 {[%clk 0:03:00]}  Nc6 {[%clk 0:02:57]} 6. Na3 {[%clk 0:02:59]}  c4 {[%clk 0:02:56]} 7. Nc2 {[%clk 0:02:58]}  Nh6 {[%clk 0:02:57]} 8. Rb1 {[%clk 0:02:56]}  Nf5 {[%clk 0:02:52]} 9. b3 {[%clk 0:02:55]}  cxb3 {[%clk 0:02:53]} 10. axb3 {[%clk 0:02:52]}  Be7 {[%clk 0:02:53]} 11. Bd3 {[%clk 0:02:46]}  Bd7 {[%clk 0:02:48]} 12. O-O {[%clk 0:02:43]}  h5 {[%clk 0:02:47]} 13. c4 {[%clk 0:02:35]}  g6 {[%clk 0:02:44]} 14. c5 {[%clk 0:02:23]}  Qd8 {[%clk 0:02:44]} 15. b4 {[%clk 0:02:22]}  a6 {[%clk 0:02:44]} 16. g3 {[%clk 0:02:09]}  Na7 {[%clk 0:02:41]} 17. Na3 {[%clk 0:01:47]}  Bb5 {[%clk 0:02:39]} 18. Nxb5 {[%clk 0:01:47]}  Nxb5 {[%clk 0:02:40]} 19. Bc2 {[%clk 0:01:34]}  Kd7 {[%clk 0:02:27]} 20. Qd3 {[%clk 0:01:23]}  Kc7 {[%clk 0:02:27]} 21. Ba4 {[%clk 0:01:05]}  Qd7 {[%clk 0:02:24]} 22. h4 {[%clk 0:00:58]}  b6 {[%clk 0:02:18]} 23. Bd2 {[%clk 0:00:51]}  Kb7 {[%clk 0:02:18]} 24. Rfc1 {[%clk 0:00:50]}  Rhc8 {[%clk 0:02:19]} 25. Rc2 {[%clk 0:00:47]}  Rc7 {[%clk 0:02:18]} 26. Rbc1 {[%clk 0:00:47]}  Rac8 {[%clk 0:02:18]} 27. Ra2 {[%clk 0:00:43]}  Qe8 {[%clk 0:02:09]} 28. Rca1 {[%clk 0:00:42]}  Qd7 {[%clk 0:02:05]} 29. Bd1 {[%clk 0:00:40]}  Ra8 {[%clk 0:01:59]} 30. Be2 {[%clk 0:00:40]}  Rcc8 {[%clk 0:02:00]} 31. Ra4 {[%clk 0:00:34]}  Qc7 {[%clk 0:01:54]} 32. R1a2 {[%clk 0:00:28]}  Rcb8 {[%clk 0:01:52]} 33. Bf1 {[%clk 0:00:22]}  Qc6 {[%clk 0:01:50]} 34. Qb1 {[%clk 0:00:22]}  Nc7 {[%clk 0:01:49]} 35. Rxa6 {[%clk 0:00:20]}  Rxa6 {[%clk 0:01:47]} 36. Rxa6 {[%clk 0:00:19]}  Nxa6 {[%clk 0:01:44]} 37. b5 {[%clk 0:00:19]}  Qc7 {[%clk 0:01:44]} 38. bxa6+ {[%clk 0:00:20]}  Ka7 {[%clk 0:01:45]} 39. cxb6+ {[%clk 0:00:16]}  Qxb6 {[%clk 0:01:46]} 40. Qc2 {[%clk 0:00:16]}  Bd8 {[%clk 0:01:46]} 41. Bg5 {[%clk 0:00:11]}  Bxg5 {[%clk 0:01:44]} 42. hxg5 {[%clk 0:00:10]}  Ne7 {[%clk 0:01:39]} 43. Qa4 {[%clk 0:00:10]}  Nc6 {[%clk 0:01:39]} 44. Qa3 {[%clk 0:00:08]}  Nb4 {[%clk 0:01:33]} 45. Qa4 {[%clk 0:00:06]}  Qc6 {[%clk 0:01:32]} 46. Qd1 {[%clk 0:00:05]}  Qc3 {[%clk 0:01:31]} 47. Qb1 {[%clk 0:00:02]}  Qxf3 {[%clk 0:01:30]} 48. Qc1 {[%clk 0:00:01]}  Qb3 {[%clk 0:01:03]} 49. Qc7+ {[%clk 0:00:01]}  Ka8 {[%clk 0:01:03]} 50. a7 {[%clk 0:00:02]}  Rb7 {[%clk 0:01:03]} 51. Qc8+ {[%clk 0:00:01]}  Kxa7 {[%clk 0:01:04]} 52. Qc5+ {[%clk 0:00:02]}  Ka8 {[%clk 0:01:02]} 53. Qc8+ {[%clk 0:00:02]}  Rb8 {[%clk 0:01:02]} 54. Qc7 {[%clk 0:00:02]}  Qa3 {[%clk 0:00:59]} 55. Qc6+ {[%clk 0:00:02]}  Nxc6 {[%clk 0:00:59]} 0-1


[Site "https://www.chess.com"]

[Event "Titled Tuesday Blitz April 19 Late 2022"]
[White "Babazada, Khazar"]
[Black "Djokic, Mihailo"]
[WhiteFideId "13413554"]
[BlackFideId "976440"]
[WhiteElo "2406"]
[BlackElo "2202"]
[Result "1-0"]
[Round "05"]
[TimeControl "180+1"]
[Date "2022.04.19"]
[WhiteClock "0:00:22"]
[BlackClock "0:00:00"]

1. e4 {[%clk 0:03:00]}  c5 {[%clk 0:03:00]} 2. Nf3 {[%clk 0:03:01]}  d6 {[%clk 0:03:00]} 3. d4 {[%clk 0:03:01]}  cxd4 {[%clk 0:03:01]} 4. Nxd4 {[%clk 0:03:00]}  Nf6 {[%clk 0:03:01]} 5. Nc3 {[%clk 0:03:00]}  g6 {[%clk 0:03:02]} 6. Be2 {[%clk 0:02:55]}  Bg7 {[%clk 0:03:02]} 7. Be3 {[%clk 0:02:55]}  O-O {[%clk 0:03:02]} 8. Qd2 {[%clk 0:02:54]}  Nc6 {[%clk 0:03:02]} 9. f3 {[%clk 0:02:52]}  Bd7 {[%clk 0:03:02]} 10. O-O-O {[%clk 0:02:50]}  Rc8 {[%clk 0:03:02]} 11. Kb1 {[%clk 0:02:49]}  Ne5 {[%clk 0:02:57]} 12. h4 {[%clk 0:02:49]}  h5 {[%clk 0:02:57]} 13. g4 {[%clk 0:02:44]}  hxg4 {[%clk 0:02:57]} 14. h5 {[%clk 0:02:45]}  Rxc3 {[%clk 0:02:53]} 15. Qxc3 {[%clk 0:02:28]}  gxf3 {[%clk 0:02:53]} 16. Nxf3 {[%clk 0:01:51]}  Nxf3 {[%clk 0:01:15]} 17. Bxf3 {[%clk 0:01:51]}  Nd5 {[%clk 0:00:56]} 18. Qd2 {[%clk 0:01:31]}  Nxe3 {[%clk 0:00:53]} 19. Qxe3 {[%clk 0:01:32]}  Qa5 {[%clk 0:00:52]} 20. Rd5 {[%clk 0:00:52]}  Qa6 {[%clk 0:00:38]} 21. Be2 {[%clk 0:00:49]}  Qa4 {[%clk 0:00:31]} 22. hxg6 {[%clk 0:00:38]}  fxg6 {[%clk 0:00:22]} 23. Qb3 {[%clk 0:00:32]}  Qxb3 {[%clk 0:00:15]} 24. axb3 {[%clk 0:00:33]}  Bc6 {[%clk 0:00:15]} 25. Bc4 {[%clk 0:00:32]}  e6 {[%clk 0:00:05]} 26. Rxd6 {[%clk 0:00:30]}  Re8 {[%clk 0:00:03]} 27. Rf1 {[%clk 0:00:28]}  Bxe4 {[%clk 0:00:01]} 28. Bxe6+ {[%clk 0:00:23]}  Kh7 {[%clk 0:00:00]} 29. Bf7 {[%clk 0:00:22]} 1-0


[Site "https://www.chess.com"]

[Event "Titled Tuesday Blitz April 19 Late 2022"]
[White "Bacrot, Etienne"]
[Black "Kanyamarala, Tarun"]
[WhiteFideId "605506"]
[BlackFideId "45004714"]
[WhiteElo "2673"]
[BlackElo "2177"]
[Result "1-0"]
[Round "05"]
[TimeControl "180+1"]
[Date "2022.04.19"]
[WhiteClock "0:02:29"]
[BlackClock "0:01:56"]

1. e4 {[%clk 0:03:00]}  c5 {[%clk 0:02:55]} 2. Nf3 {[%clk 0:02:58]}  Nc6 {[%clk 0:02:55]} 3. Bb5 {[%clk 0:02:58]}  e5 {[%clk 0:02:55]} 4. O-O {[%clk 0:02:57]}  Bd6 {[%clk 0:02:55]} 5. Na3 {[%clk 0:02:57]}  Nge7 {[%clk 0:02:52]} 6. c3 {[%clk 0:02:49]}  a6 {[%clk 0:02:47]} 7. Nc4 {[%clk 0:02:42]}  Bc7 {[%clk 0:02:46]} 8. Bxc6 {[%clk 0:02:43]}  Nxc6 {[%clk 0:02:45]} 9. d4 {[%clk 0:02:43]}  cxd4 {[%clk 0:02:39]} 10. cxd4 {[%clk 0:02:44]}  exd4 {[%clk 0:02:36]} 11. Nxd4 {[%clk 0:02:38]}  d5 {[%clk 0:02:29]} 12. exd5 {[%clk 0:02:34]}  Qxd5 {[%clk 0:02:17]} 13. Re1+ {[%clk 0:02:33]}  Be6 {[%clk 0:02:04]} 14. Nxe6 {[%clk 0:02:30]}  Qxd1 {[%clk 0:01:58]} 15. Nxc7+ {[%clk 0:02:29]}  Kd7 {[%clk 0:01:56]} 16. Rxd1+ {[%clk 0:02:29]} 1-0


[Site "https://www.chess.com"]

[Event "Titled Tuesday Blitz April 19 Late 2022"]
[White "Baker, Chris W"]
[Black "Urbina Perez, Juan Antonio"]
[WhiteFideId "401676"]
[BlackFideId "2217368"]
[WhiteElo "2242"]
[BlackElo "2192"]
[Result "0-1"]
[Round "05"]
[TimeControl "180+1"]
[Date "2022.04.19"]
[WhiteClock "0:00:28"]
[BlackClock "0:01:30"]

1. c4 {[%clk 0:02:57]}  c6 {[%clk 0:02:59]} 2. Nf3 {[%clk 0:02:55]}  d5 {[%clk 0:02:59]} 3. d4 {[%clk 0:02:54]}  Nf6 {[%clk 0:03:00]} 4. Nc3 {[%clk 0:02:53]}  a6 {[%clk 0:03:00]} 5. e3 {[%clk 0:02:50]}  Bf5 {[%clk 0:03:00]} 6. Qb3 {[%clk 0:02:47]}  Ra7 {[%clk 0:02:54]} 7. Be2 {[%clk 0:02:42]}  e6 {[%clk 0:02:54]} 8. O-O {[%clk 0:02:41]}  Bd6 {[%clk 0:02:54]} 9. c5 {[%clk 0:02:30]}  Bc7 {[%clk 0:02:53]} 10. Bd2 {[%clk 0:02:26]}  O-O {[%clk 0:02:52]} 11. a3 {[%clk 0:02:21]}  Nbd7 {[%clk 0:02:52]} 12. Na4 {[%clk 0:02:18]}  Re8 {[%clk 0:02:48]} 13. Nh4 {[%clk 0:02:03]}  Bg6 {[%clk 0:02:44]} 14. Nxg6 {[%clk 0:02:03]}  hxg6 {[%clk 0:02:45]} 15. f4 {[%clk 0:02:01]}  Ne4 {[%clk 0:02:46]} 16. Be1 {[%clk 0:02:00]}  g5 {[%clk 0:02:33]} 17. Bf3 {[%clk 0:01:49]}  gxf4 {[%clk 0:02:28]} 18. Bxe4 {[%clk 0:01:48]}  dxe4 {[%clk 0:02:29]} 19. exf4 {[%clk 0:01:47]}  Nf6 {[%clk 0:02:27]} 20. Rd1 {[%clk 0:01:43]}  Nd5 {[%clk 0:02:25]} 21. g3 {[%clk 0:01:35]}  f5 {[%clk 0:02:23]} 22. Bf2 {[%clk 0:01:27]}  g5 {[%clk 0:02:21]} 23. fxg5 {[%clk 0:01:18]}  Qxg5 {[%clk 0:02:22]} 24. Rde1 {[%clk 0:01:07]}  Kg7 {[%clk 0:02:22]} 25. Be3 {[%clk 0:01:02]}  f4 {[%clk 0:02:17]} 26. Bc1 {[%clk 0:01:00]}  e3 {[%clk 0:02:10]} 27. Kh1 {[%clk 0:00:58]}  fxg3 {[%clk 0:02:05]} 28. Qc2 {[%clk 0:00:52]}  Rh8 {[%clk 0:01:56]} 29. Rg1 {[%clk 0:00:47]}  Kf7 {[%clk 0:01:36]} 30. Ref1+ {[%clk 0:00:33]}  Ke7 {[%clk 0:01:35]} 31. Qd2 {[%clk 0:00:28]}  exd2 {[%clk 0:01:30]} 0-1


[Site "https://www.chess.com"]

[Event "Titled Tuesday Blitz April 19 Late 2022"]
[White "Barria Zuniga, Daniel"]
[Black "Wachinger, Guenther"]
[WhiteFideId "3400816"]
[BlackFideId "4604261"]
[WhiteElo "2414"]
[BlackElo "2212"]
[Result "1-0"]
[Round "05"]
[TimeControl "180+1"]
[Date "2022.04.19"]
[WhiteClock "0:00:07"]
[BlackClock "0:00:01"]

1. c4 {[%clk 0:02:45]}  e6 {[%clk 0:02:59]} 2. Nf3 {[%clk 0:02:44]}  d5 {[%clk 0:02:58]} 3. d4 {[%clk 0:02:42]}  c6 {[%clk 0:02:58]} 4. Nc3 {[%clk 0:02:36]}  dxc4 {[%clk 0:02:57]} 5. e3 {[%clk 0:02:31]}  b5 {[%clk 0:02:57]} 6. a4 {[%clk 0:02:28]}  Bb4 {[%clk 0:02:57]} 7. Bd2 {[%clk 0:02:28]}  a5 {[%clk 0:02:56]} 8. axb5 {[%clk 0:02:27]}  Bxc3 {[%clk 0:02:56]} 9. Bxc3 {[%clk 0:02:27]}  cxb5 {[%clk 0:02:56]} 10. b3 {[%clk 0:02:20]}  Bb7 {[%clk 0:02:57]} 11. bxc4 {[%clk 0:02:20]}  b4 {[%clk 0:02:57]} 12. Bb2 {[%clk 0:02:21]}  Nf6 {[%clk 0:02:57]} 13. Bd3 {[%clk 0:02:21]}  Nbd7 {[%clk 0:02:55]} 14. O-O {[%clk 0:02:21]}  O-O {[%clk 0:02:54]} 15. Re1 {[%clk 0:02:20]}  Qc7 {[%clk 0:02:54]} 16. Rc1 {[%clk 0:02:19]}  a4 {[%clk 0:02:52]} 17. e4 {[%clk 0:02:19]}  e5 {[%clk 0:02:29]} 18. c5 {[%clk 0:02:19]}  Rfe8 {[%clk 0:02:21]} 19. c6 {[%clk 0:02:14]}  a3 {[%clk 0:02:02]} 20. cxd7 {[%clk 0:02:03]}  Qxd7 {[%clk 0:01:57]} 21. Ba1 {[%clk 0:01:53]}  exd4 {[%clk 0:01:56]} 22. e5 {[%clk 0:01:50]}  Nd5 {[%clk 0:01:32]} 23. Nxd4 {[%clk 0:01:41]}  Nf4 {[%clk 0:01:28]} 24. Bf5 {[%clk 0:01:39]}  Qe7 {[%clk 0:01:09]} 25. Qg4 {[%clk 0:01:01]}  Nxg2 {[%clk 0:01:07]} 26. Re4 {[%clk 0:00:59]}  Bxe4 {[%clk 0:00:34]} 27. Bxe4 {[%clk 0:01:00]}  Rac8 {[%clk 0:00:12]} 28. Rd1 {[%clk 0:00:53]}  Nh4 {[%clk 0:00:10]} 29. Nc6 {[%clk 0:00:41]}  Qe6 {[%clk 0:00:04]} 30. Qxe6 {[%clk 0:00:33]}  fxe6 {[%clk 0:00:02]} 31. Nxb4 {[%clk 0:00:33]}  Nf5 {[%clk 0:00:02]} 32. Kg2 {[%clk 0:00:24]}  Rc4 {[%clk 0:00:02]} 33. Bxf5 {[%clk 0:00:21]}  Rxb4 {[%clk 0:00:02]} 34. Bh3 {[%clk 0:00:12]}  g5 {[%clk 0:00:01]} 35. Rd6 {[%clk 0:00:09]}  g4 {[%clk 0:00:01]} 36. Bc3 {[%clk 0:00:07]} 1-0


[Site "https://www.chess.com"]

[Event "Titled Tuesday Blitz April 19 Late 2022"]
[White "Bashirli, Nail"]
[Black "Timofeev, Artyom"]
[WhiteFideId "13406809"]
[BlackFideId "4140419"]
[WhiteElo "2333"]
[BlackElo "2594"]
[Result "1-0"]
[Round "05"]
[TimeControl "180+1"]
[Date "2022.04.19"]
[WhiteClock "0:00:11"]
[BlackClock "0:00:02"]

1. e4 {[%clk 0:02:57]}  c5 {[%clk 0:02:59]} 2. Nc3 {[%clk 0:02:55]}  d6 {[%clk 0:02:56]} 3. Nf3 {[%clk 0:02:51]}  Nc6 {[%clk 0:02:52]} 4. d4 {[%clk 0:02:50]}  cxd4 {[%clk 0:02:52]} 5. Nxd4 {[%clk 0:02:51]}  Nf6 {[%clk 0:02:52]} 6. Bg5 {[%clk 0:02:51]}  e6 {[%clk 0:02:52]} 7. Qd2 {[%clk 0:02:51]}  a6 {[%clk 0:02:52]} 8. O-O-O {[%clk 0:02:51]}  Bd7 {[%clk 0:02:52]} 9. f4 {[%clk 0:02:52]}  b5 {[%clk 0:02:51]} 10. Nf3 {[%clk 0:02:51]}  b4 {[%clk 0:02:44]} 11. Bxf6 {[%clk 0:02:36]}  Qxf6 {[%clk 0:02:39]} 12. Na4 {[%clk 0:02:27]}  Qd8 {[%clk 0:02:37]} 13. Qe3 {[%clk 0:02:22]}  Rb8 {[%clk 0:02:28]} 14. Kb1 {[%clk 0:02:04]}  Be7 {[%clk 0:02:24]} 15. g4 {[%clk 0:02:04]}  O-O {[%clk 0:02:23]} 16. f5 {[%clk 0:01:59]}  Na5 {[%clk 0:02:11]} 17. f6 {[%clk 0:01:22]}  Bxa4 {[%clk 0:01:49]} 18. fxe7 {[%clk 0:01:23]}  Qxe7 {[%clk 0:01:49]} 19. Bxa6 {[%clk 0:01:21]}  Qc7 {[%clk 0:01:34]} 20. Rd2 {[%clk 0:01:18]}  Bb5 {[%clk 0:01:20]} 21. Bxb5 {[%clk 0:01:15]}  Rxb5 {[%clk 0:01:21]} 22. b3 {[%clk 0:01:12]}  Rc5 {[%clk 0:01:20]} 23. Rhd1 {[%clk 0:01:12]}  Nb7 {[%clk 0:01:14]} 24. Nd4 {[%clk 0:01:09]}  Na5 {[%clk 0:01:07]} 25. Nf3 {[%clk 0:01:04]}  Rd8 {[%clk 0:00:54]} 26. Qf4 {[%clk 0:01:02]}  Nb7 {[%clk 0:00:46]} 27. h4 {[%clk 0:01:01]}  Rc8 {[%clk 0:00:45]} 28. Rc1 {[%clk 0:00:50]}  Ra8 {[%clk 0:00:44]} 29. e5 {[%clk 0:00:36]}  Rca5 {[%clk 0:00:40]} 30. a4 {[%clk 0:00:25]}  bxa3 {[%clk 0:00:37]} 31. c4 {[%clk 0:00:20]}  dxe5 {[%clk 0:00:36]} 32. Qe3 {[%clk 0:00:18]}  Nc5 {[%clk 0:00:34]} 33. Ka2 {[%clk 0:00:18]}  Na6 {[%clk 0:00:33]} 34. Rcd1 {[%clk 0:00:14]}  Nb4+ {[%clk 0:00:33]} 35. Ka1 {[%clk 0:00:14]}  h6 {[%clk 0:00:27]} 36. g5 {[%clk 0:00:15]}  h5 {[%clk 0:00:23]} 37. g6 {[%clk 0:00:15]}  fxg6 {[%clk 0:00:21]} 38. Qe4 {[%clk 0:00:13]}  Rf8 {[%clk 0:00:12]} 39. Ng5 {[%clk 0:00:12]}  Qe7 {[%clk 0:00:02]} 40. Qxg6 {[%clk 0:00:11]} 1-0


[Site "https://www.chess.com"]

[Event "Titled Tuesday Blitz April 19 Late 2022"]
[White "Bibasa, Bob"]
[Black "Santiago, Yago De Moura"]
[WhiteFideId "10000240"]
[BlackFideId "2103877"]
[WhiteElo "2056"]
[BlackElo "2475"]
[Result "1-0"]
[Round "05"]
[TimeControl "180+1"]
[Date "2022.04.19"]
[WhiteClock "0:00:26"]
[BlackClock "0:00:02"]

1. e4 {[%clk 0:02:58]}  e5 {[%clk 0:02:59]} 2. Nf3 {[%clk 0:02:58]}  Nc6 {[%clk 0:02:59]} 3. Bc4 {[%clk 0:02:58]}  Bc5 {[%clk 0:02:58]} 4. c3 {[%clk 0:02:58]}  Nf6 {[%clk 0:02:56]} 5. d3 {[%clk 0:02:58]}  d6 {[%clk 0:02:52]} 6. Nbd2 {[%clk 0:02:58]}  O-O {[%clk 0:02:50]} 7. Nf1 {[%clk 0:02:55]}  Be6 {[%clk 0:02:43]} 8. Bb3 {[%clk 0:02:49]}  d5 {[%clk 0:02:39]} 9. Ng3 {[%clk 0:02:36]}  dxe4 {[%clk 0:02:37]} 10. dxe4 {[%clk 0:02:36]}  Qxd1+ {[%clk 0:02:36]} 11. Bxd1 {[%clk 0:02:36]}  Rad8 {[%clk 0:02:27]} 12. Bg5 {[%clk 0:02:36]}  Ng4 {[%clk 0:01:51]} 13. Bxd8 {[%clk 0:02:24]}  Bxf2+ {[%clk 0:01:50]} 14. Kf1 {[%clk 0:02:17]}  Rxd8 {[%clk 0:01:49]} 15. Be2 {[%clk 0:02:14]}  Bb6 {[%clk 0:01:40]} 16. Rc1 {[%clk 0:01:55]}  Ne3+ {[%clk 0:01:39]} 17. Kf2 {[%clk 0:01:43]}  g6 {[%clk 0:01:09]} 18. Nf1 {[%clk 0:01:38]}  Nd1+ {[%clk 0:01:01]} 19. Kg3 {[%clk 0:01:32]}  Nxb2 {[%clk 0:01:02]} 20. N1d2 {[%clk 0:01:31]}  Be3 {[%clk 0:00:55]} 21. Rc2 {[%clk 0:01:31]}  Na4 {[%clk 0:00:48]} 22. Bb5 {[%clk 0:01:31]}  Nc5 {[%clk 0:00:41]} 23. Bxc6 {[%clk 0:01:27]}  Bf4+ {[%clk 0:00:41]} 24. Kf2 {[%clk 0:01:26]}  bxc6 {[%clk 0:00:41]} 25. g3 {[%clk 0:01:23]}  Nd3+ {[%clk 0:00:41]} 26. Kg2 {[%clk 0:01:23]}  Bh6 {[%clk 0:00:40]} 27. Nb3 {[%clk 0:01:19]}  c5 {[%clk 0:00:39]} 28. c4 {[%clk 0:01:12]}  f5 {[%clk 0:00:38]} 29. Re2 {[%clk 0:01:09]}  Bxc4 {[%clk 0:00:33]} 30. exf5 {[%clk 0:01:03]}  Nf4+ {[%clk 0:00:32]} 31. gxf4 {[%clk 0:01:02]}  Bxe2 {[%clk 0:00:33]} 32. fxe5 {[%clk 0:00:56]}  gxf5 {[%clk 0:00:30]} 33. Nxc5 {[%clk 0:00:55]}  Be3 {[%clk 0:00:28]} 34. Ne6 {[%clk 0:00:53]}  Re8 {[%clk 0:00:28]} 35. Re1 {[%clk 0:00:52]}  Rxe6 {[%clk 0:00:20]} 36. Rxe2 {[%clk 0:00:52]}  f4 {[%clk 0:00:21]} 37. Rc2 {[%clk 0:00:49]}  c5 {[%clk 0:00:21]} 38. Kf1 {[%clk 0:00:46]}  Ra6 {[%clk 0:00:18]} 39. Ke2 {[%clk 0:00:43]}  Kf7 {[%clk 0:00:19]} 40. Rb2 {[%clk 0:00:37]}  Kg6 {[%clk 0:00:18]} 41. Kd3 {[%clk 0:00:32]}  Kf5 {[%clk 0:00:18]} 42. Rb7 {[%clk 0:00:31]}  Rxa2 {[%clk 0:00:16]} 43. Rxh7 {[%clk 0:00:30]}  Ra3+ {[%clk 0:00:12]} 44. Kc4 {[%clk 0:00:31]}  Ke4 {[%clk 0:00:13]} 45. e6 {[%clk 0:00:30]}  Kxf3 {[%clk 0:00:08]} 46. e7 {[%clk 0:00:31]}  Ra4+ {[%clk 0:00:08]} 47. Kd5 {[%clk 0:00:29]}  Rd4+ {[%clk 0:00:09]} 48. Kxc5 {[%clk 0:00:27]}  Re4+ {[%clk 0:00:05]} 49. Kd5 {[%clk 0:00:27]}  Rd4+ {[%clk 0:00:05]} 50. Ke5 {[%clk 0:00:26]}  Re4+ {[%clk 0:00:02]} 51. Kf5 {[%clk 0:00:26]} 1-0


[Site "https://www.chess.com"]